lending/lending_fUSD_20250418
["ID","MTS","AMOUNT","RATE_DAILY","PERIOD"]
[358334650,1744945832645,-500.0,0.00113534,120]
[358334651,1744945832654,-500.0,0.00113534,120]
[358334652,1744945832664,-500.0,0.00113534,120]
[358334653,1744945832673,-500.0,0.00113534,120]
[358334654,1744945832682,-500.0,0.00113534,120]
[358334655,1744945832690,-500.0,0.00113534,120]
[358334656,1744945832699,-500.0,0.00113534,120]
[358334657,1744945832707,-500.0,0.00113534,120]
[358334658,1744945832713,-500.0,0.00113534,120]
[358334659,1744945832721,-500.0,0.00113534,120]
[358334660,1744945832728,-500.0,0.00113534,120]
[358334661,1744945832735,-500.0,0.00113534,120]
[358334662,1744945832743,-500.0,0.00113534,120]
[358334663,1744945832750,-211.36,0.00113598,120]
[358334664,1744945832759,-178.92420507,0.00113634,24]
[358334665,1744945832767,-11042.85581192,0.00113637,30]
[358334666,1744945832778,-9633.2821884,0.00113637,30]
[358334667,1744945832790,-3223.86199968,0.00113637,30]
[358334668,1744945832799,-152.696,0.00113765,120]
[358334669,1744945832811,-689.648,0.00113765,120]
[358334670,1744945832820,-311.23,0.00113765,120]
[358334671,1744945832830,-700.0,0.00114587,120]
[358334672,1744945832840,-6600.0,0.00115,120]
[358334673,1744945832849,-156.67,0.00115211,2]
[358334674,1744945832858,-1695.22280934,0.00119021,15]
[358334675,1744945832931,-1541.18937342,0.00119021,15]
[358334676,1744945837660,-3795.07863044,0.00119021,15]
[358334677,1744945837671,-426.02,0.00119065,120]
[358334678,1744945837681,-156.67,0.00119121,2]
[358334679,1744945837690,-1000.0,0.0011951,120]
[358334680,1744945837700,-1917.43097665,0.00119532,2]
[358334681,1744945837820,-1594.10902335,0.00119532,2]
[358334682,1744945837829,-165.28,0.00119727,120]
[358334683,1744945837839,-40.5582022,0.00119747,120]
[358334684,1744945837850,-802.2117978,0.00119747,120]
[358334685,1744945837859,-650.0,0.0012,120]
[358334686,1744945837868,-500.0,0.0012063,2]
[358334687,1744945837878,-156.67,0.00123031,2]
[358334688,1744945837887,-3365.61519946,0.001259,120]
[358334689,1744945837898,-9632.69601942,0.001259,120]
[358334690,1744945837907,-156.67,0.00126942,2]
[358334691,1744945837916,-289.46,0.00127133,120]
[358334692,1744945837925,-233.71065533,0.00127163,120]
[358334693,1744945837936,-287.47431467,0.00127163,120]
[358334694,1744945837947,-178.81503,0.00127163,120]
[358334695,1744945837956,-5074.94880158,0.00129096,15]
[358334696,1744945837967,-1956.54201154,0.00129096,15]
[358334697,1744945837975,-1500.0,0.0013,120]
[358334698,1744945837984,-1046.72565881,0.0013,120]
[358334699,1744945837993,-156.67,0.00130852,2]
[358334700,1744945838002,-500.0,0.00131506,120]
[358334701,1744945838012,-500.0,0.00131506,120]
[358334702,1744945838021,-472.87360729,0.00131506,120]
[358334703,1744945838030,-500.0,0.00132728,120]
[358334704,1744945838039,-1539.0,0.001342,30]
[358334705,1744945838047,-1000.0,0.00134449,120]
[358334706,1744945838057,-156.67,0.00134762,2]
[358334707,1744945838066,-193.76909339,0.00134999,120]
[358334708,1744945838075,-164.15492604,0.00134999,120]
[358334709,1744945838084,-164.35610581,0.00134999,120]
[358334710,1744945838093,-209.35803276,0.00134999,120]
[358334711,1744945838102,-500.0,0.00134999,120]
[358334712,1744945838111,-841.55230419,0.00134999,120]
[358334713,1744945838120,-841.55230419,0.00134999,120]
[358334714,1744945838129,-841.55230419,0.00134999,120]
[358334715,1744945838141,-841.55230419,0.00134999,120]
[358334716,1744945838150,-841.55230419,0.00134999,120]
[358334717,1744945838159,-841.55230419,0.00134999,120]
[358334718,1744945838167,-841.55230419,0.00134999,120]
[358334719,1744945838175,-841.55230419,0.00134999,120]
[358334720,1744945838182,-637.24181343,0.00134999,120]
[358334721,1744945838189,-841.55230419,0.00134999,120]
[358334723,1744945838197,-841.55230419,0.00134999,120]
[358334725,1744945838205,-841.55230419,0.00134999,120]
[358334727,1744945838214,-841.55230419,0.00134999,120]
[358334728,1744945838221,-841.55230419,0.00134999,120]
[358334730,1744945838228,-841.55230419,0.00134999,120]
[358334731,1744945838234,-841.55230419,0.00134999,120]
[358334732,1744945838241,-841.55230419,0.00134999,120]
[358334734,1744945838248,-841.55230419,0.00134999,120]
[358334735,1744945838257,-841.55230419,0.00134999,120]
[358334737,1744945838265,-841.55230419,0.00134999,120]
[358334739,1744945838272,-841.55230419,0.00134999,120]
[358334741,1744945838281,-841.55230419,0.00134999,120]
[358334743,1744945838288,-841.55230419,0.00134999,120]
[358334744,1744945838296,-700.0,0.00135,120]
[358334745,1744945838305,-1068.64652977,0.00135,30]
[358334746,1744945838313,-500.0,0.00135563,15]
[358334747,1744945838321,-263.70633347,0.00135563,12]
[358334748,1744945838331,-880.45,0.00136288,30]
[358334749,1744945838339,-338.46552385,0.00136588,120]
[358334750,1744945838347,-590.93564923,0.00136599,80]
[358334751,1744945838359,-1000.0,0.001366,120]
[358334752,1744945838369,-259.3548,0.001366,120]
[358334753,1744945838376,-7922.1472,0.001366,31]
[358334754,1744945838388,-3432.70751011,0.001366,15]
[358334755,1744945838399,-199.97175968,0.001366,28]
[358334756,1744945838409,-3776.83811244,0.0013669,26]
[358334757,1744945838425,-11009.4655789,0.00136692,30]
[358334758,1744945838438,-2282.3914255,0.00136692,30]
[358334759,1744945838448,-5784.1645888,0.00136692,30]
[358334760,1744945838458,-500.65255006,0.00136696,120]
[358334761,1744945838467,-212344.07062351,0.001367,120]
[358334762,1744945838479,-190.0,0.001367,120]
[358334763,1744945838492,-777.89754504,0.00136786,107]
[358334764,1744945838504,-4406.31113118,0.00136876,26]
[358334765,1744945838515,-850.0,0.00136885,120]
[358334766,1744945838525,-207.4,0.00136886,60]
[358334767,1744945838542,-5000.0,0.00136886,120]
[358334768,1744945838553,-764.1461,0.00136886,30]
[358334769,1744945838563,-88888.0,0.00136886,120]
[358334770,1744945838573,-600.0,0.001369,49]
[358334771,1744945838583,-177.75065927,0.00136904,2]
[358334772,1744945838599,-629.47301874,0.00136966,26]
[358334773,1744945838610,-3834.20762352,0.00136976,22]
[358334774,1744945838620,-13183.54224146,0.00136985,2]
[358334775,1744945838631,-19824.07146446,0.00136986,3]
[358334776,1744945838644,-73823.80702564,0.00136986,3]
[358334777,1744945838656,-470.89917287,0.00136986,3]
[358334778,1744945838684,-500.0,0.00136986,3]
[358334779,1744945838699,-7084.49472682,0.00136986,3]
[358334780,1744945838740,-1274.22848703,0.00136986,3]
[358334781,1744945838753,-753.62176368,0.00136986,3]
[358334782,1744945838763,-776.6,0.00136986,3]
[358334783,1744945840027,-341.89771315,0.00136986,3]
[358334784,1744945840039,-1200.96862189,0.00136986,3]
[358334785,1744945840050,-2384.40045527,0.00136986,3]
[358334796,1744945842874,-500.0,0.00068493,120]
[358334797,1744945842884,-500.0,0.00068493,120]
[358334798,1744945842894,-379.58961059,0.00068493,120]
[358334799,1744945842904,-1752.12826231,0.00134999,120]
[358334800,1744945842915,-1752.12826231,0.00134999,120]
[358334801,1744945842924,-1752.12826231,0.00134999,120]
[358334802,1744945842934,-1752.12826231,0.00134999,120]
[358334803,1744945842943,-1752.12826231,0.00134999,120]
[358334804,1744945842953,-14776.2042223,0.00136986,3]
[358334805,1744945842965,-403.1041437,0.00136986,3]
[358334811,1744945845871,-516.58894518,0.00134999,120]
[358334812,1744945845925,-1235.53931713,0.00134999,120]
[358334813,1744945845935,-1752.12826231,0.00134999,120]
[358334814,1744945845943,-626.14639673,0.00134999,120]
[358334815,1744945845955,-727.56099999,0.00134999,120]
[358334858,1744946708120,800.0,0.0002,2]
[358334859,1744946708144,800.0,0.0002,2]
[358334860,1744946708169,800.0,0.0002,2]
[358334861,1744946708194,800.0,0.0002,2]
[358334862,1744946708219,800.0,0.0002,2]
[358334863,1744946708245,800.0,0.0002,2]
[358334864,1744946708275,9625.57327284,0.0002,2]
[358334865,1744946708304,50000.0,0.0002,2]
[358334866,1744946708334,50000.0,0.0002,2]
[358334867,1744946708362,50000.0,0.0002,2]
[358334868,1744946708390,50000.0,0.0002,2]
[358334869,1744946708418,50000.0,0.0002,2]
[358334870,1744946708446,50000.0,0.0002,2]
[358334871,1744946708473,50000.0,0.0002,2]
[358334872,1744946708501,50000.0,0.0002,2]
[358334873,1744946708527,50000.0,0.0002,2]
[358334874,1744946724357,250.0,0.00017,2]
[358334875,1744946725422,300.0,0.00019,2]
[358334876,1744946730911,-257.214401,0.000199,2]
[358334877,1744946730935,-24.37267696,0.000199,2]
[358334878,1744946738135,-447.89319032,0.000199,2]
[358334881,1744946762720,-92.39515565,0.000199,2]
[358334882,1744946762744,-122.67522382,0.0001995,2]
[358334883,1744946775960,-127.32477618,0.0001995,2]
[358334884,1744946775982,-89.20580892,0.00019973,2]
[358334887,1744946818891,2568.4216035,0.0001778,2]
[358334888,1744946825107,-463.66899906,0.00019899,2]
[358334889,1744946825130,-70.78960916,0.00019973,2]
[358334890,1744946825151,-101.87008835,0.00019973,2]
[358334891,1744946838107,-177.18831247,0.00019898,2]
[358334892,1744946838128,-2330.88034186,0.000199,2]
[358334893,1744946838150,-2330.88034185,0.000199,2]
[358334894,1744946838171,-79.97252192,0.00019973,2]
[358334895,1744946838192,-506.34954078,0.00019973,2]
[358334896,1744946838214,-263.70633347,0.00019973,2]
[358334897,1744946838235,-500.0,0.00019973,2]
[358334898,1744946838256,-503.27335369,0.00019973,2]
[358334899,1744946838277,-484.53120095,0.00019973,2]
[358334900,1744946838299,-300.0,0.00019998,2]
[358334901,1744946838320,-850.0,0.00019999,2]
[358334902,1744946838342,-2.40293491,0.00019999,2]
[358334903,1744946839685,700.0,0.000199,7]
[358334904,1744946841097,-191.36615848,0.00019999,2]
[358334905,1744946841118,-209.35803276,0.00019999,2]
[358334906,1744946841139,-164.15492604,0.00019999,2]
[358334907,1744946841159,-164.35610581,0.00019999,2]
[358334908,1744946841185,-143.26727496,0.0002,2]
[358334909,1744946843094,-430.70981143,0.0002,2]
[358334910,1744946844091,-1867.11136348,0.0002,2]
[358334911,1744946853087,-288.10021153,0.0002,2]
[358334925,1744946995278,-256.03861329,0.000199,2]
[358334926,1744946995306,-184.0,0.000199,2]
[358334928,1744946995336,-160.80673379,0.00019973,2]
[358334930,1744946995366,-178.92420507,0.00019999,2]
[358334931,1744946995395,-300.0,0.00019999,2]
[358334932,1744946995427,-2293.70578275,0.0002,2]
[358334933,1744946995467,-3373.4753349,0.0002,2]
[358334934,1744946995503,-3373.4753349,0.0002,2]
[358334935,1744946995538,-2819.50575595,0.0002,2]
[358334942,1744947031718,-182.71,0.0001999,2]
[358334944,1744947031728,-182.71,0.0001999,2]
[358334946,1744947031737,-300.0,0.00019999,2]
[358334947,1744947031746,-1906.37212204,0.0002,2]
[358334948,1744947031775,-909.84275256,0.0002,2]
[358334949,1744947031787,-54855.33565918,0.0002,2]
[358334950,1744947031833,-854.83398,0.0002,2]
[358334951,1744947031845,-473.1437296,0.0002,2]
[358334952,1744947031890,-4463.60175122,0.0002,2]
[358334953,1744947031902,-387.13222533,0.0002,2]
[358334954,1744947031950,-80647.9643647,0.0002,2]
[358334955,1744947031962,-2523.2158344,0.0002,2]
[358334956,1744947031973,-982.00095212,0.0002,2]
[358334993,1744947037798,-76689.21060046,0.0002,2]
[358334994,1744947037853,-3279.73300446,0.0002,2]
[358334995,1744947037966,-8717.1,0.0002,2]
[358334996,1744947038030,-366.12785766,0.0002,2]
[358334997,1744947038053,-1423.02333217,0.0002,2]
[358334998,1744947038064,-535244.27041082,0.0002,2]
[358334999,1744947038074,-235966.10486683,0.0002,2]
[358335000,1744947038084,-7971.02077175,0.00020694,2]
[358335001,1744947038094,-177.18831247,0.00020794,2]
[358335002,1744947038103,-177.18831247,0.0002169,2]
[358335003,1744947038113,-951.40639525,0.0002179,2]
[358335004,1744947038123,-420.0,0.00021881,2]
[358335005,1744947038133,-250.0,0.0002189,2]
[358335006,1744947038142,-763.35372279,0.00022,7]
[358335007,1744947038155,-250.0,0.00022,2]
[358335008,1744947038166,-587.0,0.00023941,2]
[358335009,1744947038176,-9055.21223056,0.00024,5]
[358335010,1744947038186,-536.55401736,0.000241,2]
[358335011,1744947038195,-500.0,0.00024873,2]
[358335013,1744947038205,-324.76098463,0.0002489,2]
[358335014,1744947038215,-300.0,0.00024899,10]
[358335015,1744947038225,-500.0,0.00024899,2]
[358335016,1744947038235,-214106.201117,0.000249,2]
[358335017,1744947038244,-1000.71695408,0.00025,2]
[358335018,1744947038254,-648.0,0.00026194,2]
[358335019,1744947038264,-168.55,0.00028233,2]
[358335020,1744947038273,-500.0,0.00029157,5]
[358335021,1744947038283,-159.72151797,0.00029157,5]
[358335022,1744947038292,-506.98183847,0.00029157,2]
[358335023,1744947038301,-250.0,0.00029686,2]
[358335025,1744947038311,-168.55,0.00029786,2]
[358335026,1744947038321,-1000.0,0.00030352,5]
[358335028,1744947038330,-1828.26,0.00030444,2]
[358335029,1744947038340,-11067.80501086,0.0003133,2]
[358335030,1744947038349,-168.55,0.0003134,2]
[358335031,1744947038359,-168.55,0.00032893,2]
[358335032,1744947038368,-1000.0,0.00034637,5]
[358335033,1744947038378,-644.82622758,0.00036,2]
[358335034,1744947038388,-166.05709274,0.000384,33]
[358335035,1744947038397,-630.31480566,0.000388,2]
[358335036,1744947038406,-500.0,0.00039725,10]
[358335037,1744947038416,-2956.22724964,0.00039726,15]
[358335038,1744947038425,-2956.22724964,0.00039726,15]
[358335039,1744947038434,-2956.22724964,0.00039726,15]
[358335040,1744947038444,-2956.22724964,0.00039726,15]
[358335041,1744947038454,-2956.22724964,0.00039726,15]
[358335042,1744947038463,-2956.22724964,0.00039726,15]
[358335043,1744947038473,-2956.22724964,0.00039726,15]
[358335044,1744947038482,-1176.55324629,0.00039726,15]
[358335045,1744947038491,-1176.55324629,0.00039726,15]
[358335046,1744947038501,-1176.55324629,0.00039726,15]
[358335047,1744947038510,-1176.55324629,0.00039726,15]
[358335048,1744947038519,-1176.55324629,0.00039726,15]
[358335049,1744947038529,-1176.55324629,0.00039726,15]
[358335050,1744947038539,-1176.55324629,0.00039726,15]
[358335051,1744947038550,-1176.55324629,0.00039726,15]
[358335052,1744947038559,-1176.55324629,0.00039726,15]
[358335053,1744947038569,-1176.55324629,0.00039726,15]
[358335054,1744947038578,-1176.55324629,0.00039726,15]
[358335055,1744947038587,-1301.31960703,0.00039726,15]
[358335056,1744947038596,-1301.31960703,0.00039726,15]
[358335057,1744947038605,-1301.31960703,0.00039726,15]
[358335058,1744947038615,-1301.31960703,0.00039726,15]
[358335059,1744947038624,-1301.31960703,0.00039726,15]
[358335060,1744947038633,-1301.31960703,0.00039726,15]
[358335061,1744947038642,-1301.31960703,0.00039726,15]
[358335062,1744947038652,-7971.02077173,0.00040371,15]
[358335063,1744947038661,-169.18,0.00041237,2]
[358335064,1744947038670,-191.01,0.00041709,120]
[358335065,1744947038679,-500.0,0.00042263,2]
[358335066,1744947038688,-457.25288916,0.00043,120]
[358335067,1744947038697,-1549.85559879,0.00044655,10]
[358335068,1744947038707,-169.18,0.00045361,2]
[358335069,1744947038716,-944.26,0.00046233,2]
[358335070,1744947038725,-1852.42,0.00046553,120]
[358335071,1744947038734,-256.03861324,0.00048471,28]
[358335072,1744947038743,-944.26,0.00048497,2]
[358335073,1744947038753,-1000.0,0.00048681,2]
[358335074,1744947038763,-169.18,0.00049484,2]
[358335075,1744947038772,-944.26,0.00050761,2]
[358335076,1744947038781,-3450.06494939,0.00051014,15]
[358335077,1744947038791,-807.70991784,0.00051019,23]
[358335078,1744947038800,-1400.0,0.000519,18]
[358335079,1744947038809,-151.522897,0.00052019,120]
[358335080,1744947038819,-151.0,0.00052019,120]
[358335081,1744947038828,-159.363532,0.00052019,120]
[358335082,1744947038837,-151.0,0.00052019,120]
[358335083,1744947038847,-154.284615,0.00052019,120]
[358335084,1744947038857,-254.259999,0.00052019,30]
[358335085,1744947038866,-150.0,0.00052019,30]
[358335086,1744947038876,-253173.98007064,0.00052019,30]
[358335087,1744947038889,-235757.58965462,0.00052019,30]
[358335088,1744947038899,-156.55839659,0.00052019,30]
[358335089,1744947038908,-181.4282957,0.00052019,30]
[358335090,1744947038918,-6099.43061822,0.00052019,60]
[358335091,1744947038927,-1085.92881324,0.00052019,30]
[358335092,1744947038941,-4001.45305183,0.00052019,90]
[358335093,1744947038951,-300.0,0.00052026,30]
[358335094,1744947038962,-418.8126353,0.00052026,30]
[358335095,1744947038972,-500.0,0.00052026,30]
[358335096,1744947038983,-500.0,0.00052073,10]
[358335097,1744947038993,-500.0,0.00052073,10]
[358335098,1744947039002,-500.0,0.00052073,2]
[358335099,1744947039012,-607.44,0.000521,60]
[358335100,1744947039023,-151.0,0.00053,100]
[358335101,1744947039034,-944.26,0.00053025,2]
[358335102,1744947039044,-639.32014078,0.000533,120]
[358335103,1744947039055,-169.18,0.00053608,2]
[358335104,1744947039065,-3004.04463518,0.000539,30]
[358335105,1744947039075,-1000.0,0.00054766,120]
[358335106,1744947039085,-150.81993876,0.00054795,120]
[358335107,1744947039095,-174.79111751,0.00054795,120]
[358335108,1744947039105,-230.59440092,0.00055,30]
[358335109,1744947039116,-944.26,0.00055288,2]
[358335110,1744947039126,-987.85,0.00055324,2]
[358335111,1744947039135,-580.0,0.00056,14]
[358335112,1744947039145,-450.89204362,0.00056543,2]
[358335113,1744947039155,-152.36,0.000567,57]
[358335114,1744947039165,-152.36,0.000567,57]
[358335115,1744947039175,-152.36,0.000567,57]
[358335116,1744947039185,-152.36,0.000567,57]
[358335117,1744947039195,-152.36,0.000567,57]
[358335118,1744947039205,-152.36,0.000567,57]
[358335119,1744947039214,-152.36,0.000567,57]
[358335120,1744947039223,-152.36,0.000567,57]
[358335121,1744947039233,-152.36,0.000567,57]
[358335122,1744947039242,-152.36,0.000567,57]
[358335123,1744947039252,-152.36,0.000567,57]
[358335124,1744947039261,-1000.0,0.00057552,15]
[358335125,1744947039271,-1002.38997492,0.00057552,15]
[358335126,1744947039280,-1000.0,0.00057552,2]
[358335127,1744947039290,-944.26,0.00057552,2]
[358335128,1744947039488,-169.18,0.00057732,2]
[358335129,1744947039498,-250.69089158,0.000587,120]
[358335130,1744947039508,-572.27048956,0.0005909,2]
[358335131,1744947039518,-944.26,0.00059816,2]
[358335132,1744947039527,-1448.97940888,0.0006,120]
[358335133,1744947039537,-406.1599485,0.0006,30]
[358335134,1744947039546,-183.47185396,0.0006,120]
[358335135,1744947039556,-826.13129805,0.0006,120]
[358335136,1744947039566,-239.41800228,0.0006,30]
[358335137,1744947039575,-1093.94,0.0006,120]
[358335138,1744947039584,-1015.42495243,0.0006,2]
[358335139,1744947039594,-499.95762042,0.0006,120]
[358335140,1744947039604,-151.76175953,0.0006,30]
[358335141,1744947039613,-152.36971994,0.0006,120]
[358335142,1744947039623,-7971.02077173,0.00060049,15]
[358335143,1744947039632,-1000.0,0.00060851,120]
[358335144,1744947039641,-168.11,0.00061138,120]
[358335145,1744947039651,-800.0,0.00061648,120]
[358335146,1744947039660,-500.0,0.0006168,120]
[358335147,1744947039669,-1009.22149261,0.000618,120]
[358335148,1744947039678,-169.18,0.00061856,2]
[358335149,1744947039687,-2503.80632257,0.00062,120]
[358335150,1744947039696,-944.26,0.0006208,2]
[358335151,1744947039705,-880.45,0.00062432,30]
[358335152,1744947039714,-607.44,0.000625,60]
[358335153,1744947039724,-3702.16891281,0.00063387,2]
[358335154,1744947039733,-944.26,0.00064344,2]
[358335155,1744947039742,-1789.42595639,0.000649,120]
[358335156,1744947039751,-3550.27814821,0.00065,120]
[358335158,1744947039760,-252.13546393,0.00066,120]
[358335160,1744947039770,-215.28424796,0.00066,30]
[358335161,1744947039779,-1308.38869997,0.00066,120]
[358335162,1744947039788,-500.0,0.00066541,120]
[358335163,1744947039797,-944.26,0.00066608,2]
[358335164,1744947039807,-1000.0,0.00066936,120]
[358335165,1744947039816,-3450.06494937,0.00067557,15]
[358335166,1744947039825,-623.44890813,0.00067571,15]
[358335167,1744947039835,-999.16363904,0.00067571,2]
[358335168,1744947039844,-500.0,0.00067879,120]
[358335169,1744947039854,-551.22615562,0.00068,120]
[358335170,1744947039865,-500.0,0.00068492,60]
[358335171,1744947039877,-1166.20966122,0.00068493,120]
[358335172,1744947039887,-1166.20966122,0.00068493,120]
[358335173,1744947039899,-1166.20966122,0.00068493,120]
[358335174,1744947039909,-1166.20966122,0.00068493,120]
[358335175,1744947039918,-1166.20966122,0.00068493,120]
[358335176,1744947039927,-1166.20966122,0.00068493,120]
[358335177,1744947039938,-1166.20966122,0.00068493,120]
[358335178,1744947039947,-1166.20966122,0.00068493,120]
[358335179,1744947039957,-1166.20966122,0.00068493,120]
[358335180,1744947039966,-1166.20966122,0.00068493,120]
[358335181,1744947039975,-1166.20966122,0.00068493,120]
[358335182,1744947039985,-1166.20966122,0.00068493,120]
[358335183,1744947039994,-1166.20966122,0.00068493,120]
[358335184,1744947040004,-1166.20966122,0.00068493,120]
[358335185,1744947040014,-1166.20966122,0.00068493,120]
[358335186,1744947040024,-1166.20966122,0.00068493,120]
[358335187,1744947040034,-1166.20966122,0.00068493,120]
[358335188,1744947040043,-1166.20966122,0.00068493,120]
[358335189,1744947040052,-1166.20966122,0.00068493,120]
[358335190,1744947040062,-1166.20966122,0.00068493,120]
[358335191,1744947040072,-1166.20966122,0.00068493,120]
[358335192,1744947040082,-1166.20966122,0.00068493,120]
[358335193,1744947040092,-1166.20966122,0.00068493,120]
[358335194,1744947040101,-1166.20966122,0.00068493,120]
[358335195,1744947040111,-1166.20966122,0.00068493,120]
[358335196,1744947040120,-418.54744225,0.00068493,120]
[358335197,1744947040133,-747.66221897,0.00068493,120]
[358335198,1744947040142,-1166.20966122,0.00068493,120]
[358335199,1744947040151,-1166.20966122,0.00068493,120]
[358335200,1744947040161,-1166.20966122,0.00068493,120]
[358335201,1744947040170,-1166.20966122,0.00068493,120]
[358335202,1744947040179,-1166.20966122,0.00068493,120]
[358335203,1744947040189,-1166.20966122,0.00068493,120]
[358335204,1744947040198,-1166.20966122,0.00068493,120]
[358335205,1744947040208,-1166.20966122,0.00068493,120]
[358335206,1744947040217,-1166.20966122,0.00068493,120]
[358335207,1744947040227,-1166.20966122,0.00068493,120]
[358335208,1744947040236,-1166.20966122,0.00068493,120]
[358335209,1744947040246,-1166.20966122,0.00068493,120]
[358335210,1744947040256,-1166.20966122,0.00068493,120]
[358335211,1744947040266,-1166.20966122,0.00068493,120]
[358335212,1744947040275,-1166.20966122,0.00068493,120]
[358335213,1744947040285,-1166.20966122,0.00068493,120]
[358335214,1744947040295,-1166.20966122,0.00068493,120]
[358335215,1744947040305,-1166.20966122,0.00068493,120]
[358335216,1744947040314,-1166.20966122,0.00068493,120]
[358335217,1744947040323,-1166.20966122,0.00068493,120]
[358335218,1744947040333,-1166.20966122,0.00068493,120]
[358335219,1744947040342,-1166.20966122,0.00068493,120]
[358335220,1744947040352,-1166.20966122,0.00068493,120]
[358335221,1744947040361,-1166.20966122,0.00068493,120]
[358335222,1744947040371,-1166.20966122,0.00068493,120]
[358335223,1744947040381,-1166.20966122,0.00068493,120]
[358335224,1744947040390,-1166.20966122,0.00068493,120]
[358335225,1744947040400,-1166.20966122,0.00068493,120]
[358335226,1744947040409,-1166.20966122,0.00068493,120]
[358335227,1744947040418,-1166.20966122,0.00068493,120]
[358335228,1744947040427,-1166.20966122,0.00068493,120]
[358335229,1744947040435,-1166.20966122,0.00068493,120]
[358335230,1744947040444,-1166.20966122,0.00068493,120]
[358335231,1744947040454,-1166.20966122,0.00068493,120]
[358335232,1744947040463,-1158.16683597,0.00068493,120]
[358335233,1744947040471,-1158.16683597,0.00068493,120]
[358335234,1744947040481,-1158.16683597,0.00068493,120]
[358335235,1744947040490,-1158.16683597,0.00068493,120]
[358335236,1744947040499,-1158.16683597,0.00068493,120]
[358335237,1744947040509,-1158.16683597,0.00068493,120]
[358335238,1744947040518,-1158.16683597,0.00068493,120]
[358335239,1744947040527,-1158.16683597,0.00068493,120]
[358335240,1744947040536,-1158.16683597,0.00068493,120]
[358335241,1744947040544,-1158.16683597,0.00068493,120]
[358335242,1744947040553,-1158.16683597,0.00068493,120]
[358335243,1744947040562,-1158.16683597,0.00068493,120]
[358335244,1744947040571,-1158.16683597,0.00068493,120]
[358335245,1744947040581,-1158.16683597,0.00068493,120]
[358335246,1744947040590,-1158.16683597,0.00068493,120]
[358335247,1744947040599,-1158.16683597,0.00068493,120]
[358335248,1744947040608,-1158.16683597,0.00068493,120]
[358335249,1744947040617,-1158.16683597,0.00068493,120]
[358335250,1744947040627,-1158.16683597,0.00068493,120]
[358335251,1744947040636,-1158.16683597,0.00068493,120]
[358335252,1744947040645,-1158.16683597,0.00068493,120]
[358335253,1744947040654,-1158.16683597,0.00068493,120]
[358335254,1744947040663,-1158.16683597,0.00068493,120]
[358335255,1744947040672,-1158.16683597,0.00068493,120]
[358335256,1744947040681,-1158.16683597,0.00068493,120]
[358335257,1744947040690,-1158.16683597,0.00068493,120]
[358335258,1744947040699,-1158.16683601,0.00068493,120]
[358335259,1744947040707,-1158.16683601,0.00068493,120]
[358335260,1744947040717,-1158.16683601,0.00068493,120]
[358335261,1744947040727,-151.0,0.00068493,120]
[358335262,1744947040737,-151.0,0.00068493,120]
[358335263,1744947040747,-250.0,0.000685,120]
[358335264,1744947040756,-250.0,0.000685,120]
[358335265,1744947040766,-250.0,0.000685,120]
[358335266,1744947040775,-257.9,0.000685,120]
[358335267,1744947040785,-944.26,0.00068872,2]
[358335268,1744947040794,-182.72510587,0.00068999,90]
[358335269,1744947040803,-42033.29638768,0.00069,2]
[358335270,1744947040813,-151.0,0.00069,120]
[358335271,1744947040822,-151.0,0.00069,120]
[358335272,1744947040831,-151.0,0.00069,120]
[358335273,1744947040840,-298.97873,0.0007,120]
[358335274,1744947040849,-1014.09660676,0.0007,120]
[358335275,1744947040859,-150.0,0.0007,120]
[358335276,1744947040868,-126.48735939,0.0007,120]
[358335277,1744947040880,-23.51264061,0.0007,120]
[358335278,1744947040889,-150.0,0.0007,120]
[358335279,1744947040898,-150.0,0.0007,120]
[358335280,1744947040907,-150.0,0.0007,120]
[358335281,1744947040916,-150.0,0.0007,120]
[358335282,1744947040926,-150.0,0.0007,120]
[358335283,1744947040937,-150.0,0.0007,120]